Cogmind - Beta 10.2 @@@ ROGUE MODE // 2021.10.27 @ 06:47:57 // Winter2019/RPGLIKE Player: SHOCK Result: Destroyed 0B10! Performance ------------- Evolutions (9) 4500 Regions Visited (26) 5200 Robots Destroyed (227) 1135 Value Destroyed (14150) 14150 Prototype IDs (201) 4020 Alien Tech Used (14) 2800 Bonus (33013) 33013 TOTAL SCORE: 64818 Bonus ------- Triggered Max Security 2000 High Alert Combat Kills 1610 Follower Combat Kills 1761 Entered Garrisons 1200 Used RIF Installer 3000 Network Hubs Disabled 200 Aligned with FarCom 300 Met R17 at Cetus 500 Used Core Reset Matrix 3000 Scanned by Researcher 500 Pursued by Intercept 500 Acquired SGEMP 2000 Met Sigix 2000 Activated Exoskeleton 3000 Escaped with Exo-Sigix 10000 Win 3000 Friendly Fire -1558 Cogmind --------- Core Integrity 683/1000 Matter 196/1000 Energy 1330/1340 System Corruption 0% Temperature Cool (10) Movement Flying (10) Location Tau Ceti IV Orbit Parts ------- > --- POWER (2) -------- Light Quantum Reactor Improved Quantum Reactor > --- PROPULSION (6) --- Experimental Cesium-ion Thruster Experimental Cesium-ion Thruster Experimental Q-thruster Experimental Q-thruster Experimental Q-thruster > --- UTILITY (14) ----- Experimental Signal Interpreter Experimental Terrain Scanner Experimental Weapon Cycler Advanced ECM Suite Experimental Phase Shifter Advanced Cloaking Device Experimental Thermal Defense Suite Energy Mantle Matter Drive > --- WEAPON (4) ------- Sigix Quantum Sheargun Improved Remote Datajack > --- INVENTORY (23) --- Dimensional Node Initializer High-powered Transdimensional Reconstructor High-powered Transdimensional Reconstructor Integrity Redistributor Subatomic Replicator Matter Drive Stasis Generator Sigix Quantum Sheargun Sigix Quantum Sheargun Core Cannon Sigix Broadsword SGEMP Prototype Peak State ------------ > --- POWER ------------ Light Quantum Reactor Improved Quantum Reactor > --- PROPULSION ------- Field Propulsion Drive Experimental Cesium-ion Thruster Experimental Cesium-ion Thruster Experimental Q-thruster Experimental Q-thruster Experimental Q-thruster > --- UTILITY ---------- Experimental Energy Well Experimental Signal Interpreter Experimental Terrain Scanner Experimental Weapon Cycler Advanced ECM Suite Experimental Phase Shifter Advanced Cloaking Device Experimental Thermal Defense Suite Energy Mantle Relay Coupler [NC] Relay Coupler [Grunt] Relay Coupler [Sentry] Relay Coupler [Hunter] Relay Coupler [Behemoth] > --- WEAPON ----------- Improved KE Penetrator Improved KE Penetrator Improved KE Penetrator Improved Remote Datajack > --- INVENTORY -------- Relay Coupler [Duelist] Relay Coupler [Demolisher] Dimensional Node Initializer Dimensional Node Initializer Dimensional Node Initializer Transdimensional Reconstructor High-powered Transdimensional Reconstructor High-powered Transdimensional Reconstructor High-powered Transdimensional Reconstructor Core Reset Matrix Core Cannon Portable AFG SGEMP Prototype [Rating: 208] Favorites ----------- Power Neutrino Core Engine Improved Deuterium Engine Power Core Neutrino Core Reactor Antimatter Reactor Propulsion Xenon Bombardment Thruster Flight Unit Xenon Bombardment Thruster Utility Relay Coupler [Hunter] Device Experimental Sensor Array Storage Experimental Energy Well Processor Experimental Signal Interpreter Hackware Relay Coupler [Hunter] Artifact Matter Drive Weapon KE Penetrator Energy Gun Sigix Quantum Sheargun Energy Cannon Core Cannon Ballistic Gun KE Penetrator Launcher Grenade Launcher Special Weapon Improved Remote Datajack Special Melee Weapon Improved Datajack Build | -11 -10 -10 -10 -9 -8 -8 -8 -8 -7 -7 -6 -6 -5 -5 -4 -4 -4 -4 -4 -3 -3 -3 -2 -2 -2 -1 ------- Run | Scr Mat Min Exi Min Mat Gar Mat Gar Fac Gar Fac Gar Fac Gar Fac Ext Cet Arc Hub Res Tes Gar Res Qua Sec Acc Slots Evolved 22 | . 2 2 9 . . . . . 4 1 2 . 1 1 . . . . . . . . . . . . Power 1 | . . . . . . . . . . . 1 . . . . . . . . . . . . . . . Propulsion 5 | . 2 . 3 . . . . . . . . . . . . . . . . . . . . . . . Utility 13 | . . 1 4 . . . . . 4 1 1 . 1 1 . . . . . . . . . . . . Weapon 3 | . . 1 2 . . . . . . . . . . . . . . . . . . . . . . . Parts Attached 141 | 1 5 1 2 . 3 1 2 2 20 5 19 4 18 8 9 3 12 . 7 . 12 . . . 6 1 Power 20 | . . . . . . . . . . . 6 . 2 . 2 . 6 . 2 . 2 . . . . . Engine 1 | . . . . . . . . . . . 1 . . . . . . . . . . . . . . . Core 9 | . . . . . . . . . . . 4 . 2 . 1 . 1 . 1 . . . . . . . Reactor 10 | . . . . . . . . . . . 1 . . . 1 . 5 . 1 . 2 . . . . . Propulsion 22 | . 3 . 1 . 1 . . . 6 . 2 . 5 . 4 . . . . . . . . . . . Treads . | . . . . . . . . . . . . . . . . . . . . . . . . . . . Leg . | . . . . . . . . . . . . . . . . . . . . . . . . . . . Wheel . | . . . . . . . . . . . . . . . . . . . . . . . . . . . Hover . | . . . . . . . . . . . . . . . . . . . . . . . . . . . Flight 22 | . 3 . 1 . 1 . . . 6 . 2 . 5 . 4 . . . . . . . . . . . Utility 53 | . 1 1 . . . . . 1 5 5 6 1 7 8 2 3 . . 2 . 10 . . . . 1 Device 26 | . . 1 . . . . . . 1 1 4 . 5 2 2 2 . . . . 8 . . . . . Storage 2 | . . . . . . . . . . . . . . . . . . . . . 2 . . . . . Processor 6 | . 1 . . . . . . . 3 1 1 . . . . . . . . . . . . . . . Hackware 18 | . . . . . . . . 1 1 3 1 1 2 6 . 1 . . 2 . . . . . . . Protection . | . . . . . . . . . . . . . . . . . . . . . . . . . . . Artifact 1 | . . . . . . . . . . . . . . . . . . . . . . . . . . 1 Weapon 46 | 1 1 . 1 . 2 1 2 1 9 . 5 3 4 . 1 . 6 . 3 . . . . . 6 . Energy Gun 7 | 1 . . . . 1 1 . 1 . . . . . . . . . . . . . . . . 3 . Energy Cannon 1 | . . . . . . . . . . . . . . . . . . . . . . . . . 1 . Ballistic Gun 31 | . . . 1 . 1 . 1 . 7 . 5 3 2 . 1 . 6 . 2 . . . . . 2 . Ballistic Cannon . | . . . . . . . . . . . . . . . . . . . . . . . . . . . Launcher 2 | . 1 . . . . . 1 . . . . . . . . . . . . . . . . . . . Special Weapon 4 | . . . . . . . . . 1 . . . 2 . . . . . 1 . . . . . . . Impact Weapon . | . . . . . . . . . . . . . . . . . . . . . . . . . . . Slashing Weapon . | . . . . . . . . . . . . . . . . . . . . . . . . . . . Piercing Weapon . | . . . . . . . . . . . . . . . . . . . . . . . . . . . Special Melee Weapon 1 | . . . . . . . . . 1 . . . . . . . . . . . . . . . . . Unidentified Prototypes 8 | . . 1 . . 1 . . . 1 . 2 . 1 . . . . . . . 2 . . . . . Parts Lost 3 | . . . . . . . . . 1 . 1 . . . . . . . . . . . . . 1 . Power . | . . . . . . . . . . . . . . . . . . . . . . . . . . . Propulsion 1 | . . . . . . . . . . . . . . . . . . . . . . . . . 1 . Utility 1 | . . . . . . . . . . . 1 . . . . . . . . . . . . . . . Weapon 1 | . . . . . . . . . 1 . . . . . . . . . . . . . . . . . Highest Loss Streak 1 | . . . . . . . . . 1 . 1 . . . . . . . . . . . . . 1 . Average Slot Usage (%) 87 | . 51 81 50 41 41 47 47 50 66 94 99 100 97 100 99 100 100 100 98 97 96 100 100 88 75 72 Engine 1 | . . . . . . . . . 4 4 2 4 . . . . . . . . . . . . . . Core 3 | . . . . . . . . . . . 4 4 7 7 4 3 2 3 2 3 2 . . . . . Reactor 1 | . . . . . . . . . . . . . . . 1 3 3 3 3 3 3 7 7 7 7 7 Flight 23 | . 10 47 22 17 17 17 17 17 20 27 25 25 24 23 23 23 23 23 23 23 23 23 23 23 23 19 Device 18 | . . 2 6 5 5 5 5 5 5 10 23 20 21 22 23 26 26 26 26 26 25 26 26 26 26 26 Processor 7 | . 18 15 6 5 5 5 5 5 10 15 8 8 8 7 6 3 3 3 3 3 3 3 3 3 3 3 Hackware 15 | . . . . . . . . 3 6 17 16 19 20 23 23 23 23 23 23 20 19 19 19 10 . . Ballistic Gun 10 | . . . 3 5 5 7 7 7 13 13 12 12 12 11 11 11 11 11 10 11 11 11 11 11 7 . Special Weapon 2 | . . . . . . . . . 1 4 4 4 3 3 3 3 3 3 2 3 3 3 3 3 3 3 Naked Turns . | . . . . . . . . . . . . . . . . . . . . . . . . . . . Heaviest Build 93 | 2 3 4 14 14 15 17 17 17 21 22 49 49 63 73 73 72 93 78 85 78 87 87 87 87 88 88 Greatest Support 117 | 3 12 12 80 80 80 95 95 95 98 67 67 67 71 76 77 77 82 82 82 82 87 87 87 107 117 108 Greatest Overweight (x) 2 | . . . 1 . . . . . . . . . . . . . 1 . 1 . 2 . . 1 . . Average Overweight (x) . | . . . . . . . . . . . . . . . . . . . . . . . . . . . Largest Inventory Capacity 23 | . . . 6 6 6 8 8 8 10 10 10 10 10 10 10 10 10 10 10 10 10 10 10 23 23 23 Average Capacity 9 | . . . 4 6 6 7 8 8 8 10 10 10 10 10 10 10 10 10 10 10 10 10 10 18 23 23 Most Carried 23 | . . . 1 1 3 3 5 6 9 8 10 10 10 10 10 8 10 8 8 6 10 7 7 22 23 21 Average Carried 7 | . . . . 1 2 2 3 5 4 7 9 9 9 6 9 6 8 8 6 6 7 7 7 14 22 19 Final Capacity 23 | . . . 6 6 6 8 8 8 10 10 10 10 10 10 10 10 10 10 10 10 10 10 10 23 23 23 Final Carried 22 | . . . 1 1 2 3 5 6 6 8 10 9 8 10 7 6 8 8 6 6 7 7 7 22 21 16 Class Distribution -------------------- 86% | Wizard-Scout 7% | Commander-Scout 4% | Mutant Dominant Class ---------------- Mutant | -10/Materials Mutant | -10/Mines Mutant | -10/Exiles Scout | -9/Mines Wizard-Scout | -8/Materials Wizard-Scout | -8/Garrison Wizard-Scout | -8/Materials Wizard-Scout | -8/Garrison Wizard-Scout | -7/Factory Wizard-Scout | -7/Garrison Wizard-Scout | -6/Factory Wizard-Scout | -6/Garrison Wizard-Scout | -5/Factory Wizard-Scout | -5/Garrison Wizard-Scout | -4/Factory Commander-Scout | -4/Extension Wizard-Scout | -4/Cetus Wizard-Scout | -4/Archives Wizard-Scout | -4/Hub_04(d) Wizard-Scout | -3/Research Wizard-Scout | -3/Testing Wizard-Scout | -3/Garrison Wizard-Scout | -2/Research Wizard-Scout | -2/Quarantine Wizard-Scout | -2/Section 7 Wizard-Scout | -1/Access Resources | -11 -10 -10 -10 -9 -8 -8 -8 -8 -7 -7 -6 -6 -5 -5 -4 -4 -4 -4 -4 -3 -3 -3 -2 -2 -2 -1 ----------- Run | Scr Mat Min Exi Min Mat Gar Mat Gar Fac Gar Fac Gar Fac Gar Fac Ext Cet Arc Hub Res Tes Gar Res Qua Sec Acc Matter Collected 7732 | 129 98 36 35 89 70 118 177 110 438 874 1097 493 642 681 579 338 572 . 133 . 645 . . 272 106 . Remotely . | . . . . . . . . . . . . . . . . . . . . . . . . . . . Salvage Created 9169 | . 122 9 . 56 164 274 397 280 456 1141 1395 681 1014 514 734 25 556 . 26 . 562 . . 169 478 116 Parts 513 | . 9 2 . 6 11 21 21 21 24 62 63 32 53 34 37 8 25 . 1 . 31 2 . 11 35 4 Haulers Intercepted 1 | . . . . . . . . . 1 . . . . . . . . . . . . . . . . . Recyclers Shooed 1 | . . . . . . . . . . . . . . . . . . . . . . . . 1 . . Parts Field Recycled . | . . . . . . . . . . . . . . . . . . . . . . . . . . . Retrieved Matter . | . . . . . . . . . . . . . . . . . . . . . . . . . . . Parts Self-Destructed . | . . . . . . . . . . . . . . . . . . . . . . . . . . . Prevented . | . . . . . . . . . . . . . . . . . . . . . . . . . . . Kills | -11 -10 -10 -10 -9 -8 -8 -8 -8 -7 -7 -6 -6 -5 -5 -4 -4 -4 -4 -4 -3 -3 -3 -2 -2 -2 -1 ------- Run | Scr Mat Min Exi Min Mat Gar Mat Gar Fac Gar Fac Gar Fac Gar Fac Ext Cet Arc Hub Res Tes Gar Res Qua Sec Acc Combat Hostiles Destroyed 171 | . . 2 . 7 5 13 3 16 6 27 15 17 14 12 7 1 8 . . . 7 1 . 5 4 1 Melee 1 | . . . . . . . . . . . . . . 1 . . . . . . . . . . . . Guns 145 | . . . . . 3 6 3 9 6 27 15 17 14 11 7 1 8 . . . 7 1 . 5 4 1 AOE 25 | . . 2 . 7 2 7 . 7 . . . . . . . . . . . . . . . . . . Classes Destroyed 18 | . 2 1 . 1 1 . 1 . 3 3 2 . . 1 . . . . . . 2 . . . 1 . Worker 6 | . . . . . . . . . . . 2 . . . 2 . . . . . 2 . . . . . Builder 6 | . . . . . . . 1 . . . 2 . . . 1 1 . . . . 1 . . . . . Hauler 1 | . . . . . . . . . 1 . . . . . . . . . . . . . . . . . Recycler 5 | . 1 . . . 1 . 2 . . . . . 1 . . . . . . . . . . . . . Operator 4 | . . . . . . . . . 1 . . . . . . . . . . . . . . 1 2 . Watcher 28 | . 2 . . . . . 1 . 3 . 4 . 6 1 2 . 2 . 1 . 3 . . . 3 . Swarmer 51 | . . . . 4 3 7 . 4 3 8 1 6 4 1 . . 3 . . . 2 . . 5 . . Saboteur 2 | . . . . . . . . . . . . . . 2 . . . . . . . . . . . . Grunt 67 | . . 2 . 4 1 4 2 12 . 13 5 10 5 6 . . . . . . . . . . 2 1 Brawler 3 | . . . . . . . . . . 2 . . . . . . 1 . . . . . . . . . Duelist 6 | . . . . . . . . . . 2 . . 1 1 . . . . . . 1 1 . . . . Researcher 1 | . . . . . . . . . . . . . . . . . . . . . . . . . 1 . Sentry 24 | . . . . . 1 2 1 . 2 . 7 2 2 1 5 1 . . . . . . . . . . Specialist 3 | . . . . . . . . . . 2 . . . 1 . . . . . . . . . . . . Hunter 5 | . . . . . . . . . 1 . 2 . . . 2 . . . . . . . . . . . Programmer 6 | . . . . . . . . . . . 1 1 2 . . . . . . . . . . . 2 . Cetus Guard 4 | . . . . . . . . . . . . . . . . . 4 . . . . . . . . . Striker 2 | . . . . . . . . . . . . . . . . . . . . . 2 . . . . . Alpha 7 1 | . . . . . . . . . . . . . . . . . . . . . 1 . . . . . Protovariant L 1 | . . . . . . . . . . . . . . . . . . . . . 1 . . . . . Best Kill Streak 8 | . 3 2 . 4 3 6 4 7 6 5 6 5 5 5 3 2 6 . 1 . 8 1 . 5 5 1 Combat Bots Only 7 | . . 2 . 4 3 6 3 7 4 5 2 5 5 5 2 1 5 . . . 4 1 . 5 2 1 Max Kills in Single Turn 3 | . 1 2 . 2 2 3 3 3 1 2 2 2 2 2 2 1 3 . 1 . 2 1 . 1 1 1 Gunslinging 2 | . . . . . . . . . . 1 . 1 1 . . . 2 . . . . . . . . . Exploded 3 | . . 2 . 1 2 3 . 2 . . . . . . . . . . . . . . . . . . Melee 1 | . . . . . . . . . . . . . . 1 . . . . . . . . . . . . Uniques/NPCs Destroyed 1 | . . . . . . . . . . . . . . . . . 1 . . . . . . . . . Revision 17 (-4/Cetus) Combat | -11 -10 -10 -10 -9 -8 -8 -8 -8 -7 -7 -6 -6 -5 -5 -4 -4 -4 -4 -4 -3 -3 -3 -2 -2 -2 -1 -------- Run | Scr Mat Min Exi Min Mat Gar Mat Gar Fac Gar Fac Gar Fac Gar Fac Ext Cet Arc Hub Res Tes Gar Res Qua Sec Acc Damage Taken 4922 | 3 22 76 . 148 61 274 97 381 137 366 579 200 343 75 253 170 153 25 115 38 668 11 . 63 591 73 Core 3941 | 3 16 62 . 117 51 232 73 305 110 313 462 152 266 61 209 139 119 22 85 30 537 8 . 50 464 55 Absorbed by Shields 2289 | . . . . . . . . . . . 419 215 264 71 247 20 147 23 113 36 29 4 . 62 569 70 Redirected to Core 3160 | . 16 34 . 98 34 147 70 254 80 173 362 138 247 37 147 111 111 11 85 23 450 8 . 50 419 55 Core Remaining (%) 88 | 99 . . . 82 . . . 96 . 100 . 93 . 98 . . . . 76 . . 88 . . 86 68 Volleys Fired 828 | . 5 4 . 10 7 25 18 17 25 49 74 40 94 45 58 35 32 6 29 23 91 18 1 70 47 5 Largest 4 | . 1 1 . 1 1 2 2 2 3 3 3 3 4 3 3 3 3 1 3 1 3 3 1 3 3 3 Hottest 300 | . 40 30 . 30 30 95 95 93 84 88 90 99 132 99 101 101 105 40 105 40 105 105 40 105 300 300 Shots Fired 1785 | . 5 4 . 10 22 57 27 50 55 143 218 100 187 109 148 45 88 6 37 23 150 28 1 120 139 13 Gun 1484 | . 5 . . . 19 48 9 43 54 141 218 90 171 96 138 15 84 . 13 . 92 16 . 81 138 13 Cannon 1 | . . . . . . . . . . . . . . . . . . . . . . . . . 1 . Launcher 51 | . . 4 . 10 3 9 18 7 . . . . . . . . . . . . . . . . . . Special 249 | . . . . . . . . . 1 2 . 10 16 13 10 30 4 6 24 23 58 12 1 39 . . Kinetic 1422 | . . . . . 19 38 5 34 54 141 218 90 171 96 138 15 84 . 13 . 92 16 . 81 117 . Thermal 24 | . . . . . . 10 4 9 . . . . . . . . . . . . . . . . 1 . Explosive 51 | . . 4 . 10 3 9 18 7 . . . . . . . . . . . . . . . . . . Electromagnetic 5 | . 5 . . . . . . . . . . . . . . . . . . . . . . . . . Slashing 34 | . . . . . . . . . . . . . . . . . . . . . . . . . 21 13 Robot Hit Streak 57 | . 2 4 . 3 18 24 8 18 33 35 48 57 32 33 24 34 48 4 11 34 37 9 10 19 28 37 Robot Miss Streak 2 | . 2 2 . 1 1 1 1 2 1 1 1 1 1 1 1 1 2 1 1 . 1 1 . 1 1 . Penetration Max 2 | . . . . . . . . . 1 1 1 2 1 1 1 1 1 . . . 1 . . 1 1 . Secondary Targets 26 | . . . . . . . . . 2 5 . 5 4 2 . . 4 . . . 2 . . 1 . 1 Max Gunslinging Chain 2 | . . . . . . . . . 1 1 . 1 1 1 . . 2 . . . 1 . . 1 . 1 Autonomous 71 | . . . . . 15 24 5 27 . . . . . . . . . . . . . . . . . . Shots Hit Robots 1030 | . 3 2 . 4 18 41 8 37 44 74 96 69 89 54 92 41 68 5 26 23 113 16 1 48 49 9 Core Hits 393 | . 3 4 . 16 9 20 11 32 15 40 40 28 33 21 36 7 22 . 1 . 25 3 . 6 18 3 Critical Hits 71 | . . . . . . . . . 1 4 1 5 10 6 7 1 13 . 1 . 14 . . 2 5 1 Critical Kills 29 | . . . . . . . . . 1 3 . 3 3 3 2 . 3 . 1 . 4 . . 2 3 1 Critical Parts Destroyed 35 | . . . . . . . . . . 1 1 2 7 2 5 1 9 . . . 5 . . . 2 . Melee Attacks . | . . . . . . . . . . . . . . . . . . . . . . . . . . . Impact . | . . . . . . . . . . . . . . . . . . . . . . . . . . . Slashing . | . . . . . . . . . . . . . . . . . . . . . . . . . . . Piercing . | . . . . . . . . . . . . . . . . . . . . . . . . . . . Sneak Attacks . | . . . . . . . . . . . . . . . . . . . . . . . . . . . Combat Hostiles . | . . . . . . . . . . . . . . . . . . . . . . . . . . . Follow-up Attacks . | . . . . . . . . . . . . . . . . . . . . . . . . . . . Damage Inflicted 26362 | 7 136 222 . 834 606 1289 329 1440 1064 2108 2944 2285 2302 1399 2380 445 2043 . 122 . 1858 154 . 477 1642 276 Guns 23689 | . 86 . . . 458 827 167 786 1064 2108 2944 2285 2249 1358 2380 445 2043 . 99 . 1858 154 . 460 1642 276 Cannons . | . . . . . . . . . . . . . . . . . . . . . . . . . . . Explosions 2649 | . 50 222 . 834 148 462 162 654 . . . . 53 41 . . . . 23 . . . . . . . Melee . | . . . . . . . . . . . . . . . . . . . . . . . . . . . Ramming 24 | 7 . . . . . . . . . . . . . . . . . . . . . . . 17 . . Kinetic 22602 | . . . . . 458 750 119 698 1064 2108 2944 2285 2249 1358 2380 445 2043 . 99 . 1858 154 . 460 1130 . Thermal 263 | . 50 . . . . 77 48 88 . . . . . . . . . . . . . . . . . . Explosive 2576 | . . 222 . 834 148 462 162 654 . . . . 53 41 . . . . . . . . . . . . Electromagnetic 109 | . 86 . . . . . . . . . . . . . . . . . 23 . . . . . . . Impact . | . . . . . . . . . . . . . . . . . . . . . . . . . . . Slashing 788 | . . . . . . . . . . . . . . . . . . . . . . . . . 512 276 Piercing . | . . . . . . . . . . . . . . . . . . . . . . . . . . . Highest Corruption 2 | . . . . . . . . . . . 2 . . . . . . . 1 . . . . . 1 . Average Corruption 1 | . . . . . . . . . . . 1 . . . . . . . 1 . . . . . 1 . Corruption Purged 2 | . . . . . . . . . . . 2 . . . . . . . . . . . . . . . Effects 6 | . . . . . . . . . . . 6 . . . . . . . . . . . . . . . Message Errors 1 | . . . . . . . . . . . 1 . . . . . . . . . . . . . . . Heat Flow Errors 1 | . . . . . . . . . . . 1 . . . . . . . . . . . . . . . Energy Discharges 1 | . . . . . . . . . . . 1 . . . . . . . . . . . . . . . Data Loss (minor) 1 | . . . . . . . . . . . 1 . . . . . . . . . . . . . . . Targeting Errors 2 | . . . . . . . . . . . 2 . . . . . . . . . . . . . . . Overload Shots . | . . . . . . . . . . . . . . . . . . . . . . . . . . . Overflow Damage 16 | . . . . 16 . . . . . . . . . . . . . . . . . . . . . . Projectiles . | . . . . . . . . . . . . . . . . . . . . . . . . . . . Explosions 16 | . . . . 16 . . . . . . . . . . . . . . . . . . . . . . Melee . | . . . . . . . . . . . . . . . . . . . . . . . . . . . Knockbacks . | . . . . . . . . . . . . . . . . . . . . . . . . . . . Impact . | . . . . . . . . . . . . . . . . . . . . . . . . . . . Kinetic . | . . . . . . . . . . . . . . . . . . . . . . . . . . . Secondary . | . . . . . . . . . . . . . . . . . . . . . . . . . . . Self-Inflicted Damage 210 | 3 22 24 . 26 . . 19 11 . . . . . . . . . . 97 . . . . 8 . . Shots 9 | . 1 2 . 2 . . 2 1 . . . . . . . . . . 1 . . . . . . . Rammed 2 | 1 . . . . . . . . . . . . . . . . . . . . . . . 1 . . Targets Rammed 2 | 1 . . . . . . . . . . . . . . . . . . . . . . . 1 . . Kicked . | . . . . . . . . . . . . . . . . . . . . . . . . . . . Crushed . | . . . . . . . . . . . . . . . . . . . . . . . . . . . Highest Temperature 379 | . 15 14 . 26 . . 16 6 6 32 379 14 42 22 28 6 21 . 3 9 21 14 . . 166 177 Average Temperature 26 | . 8 10 . 14 . . 8 6 5 6 64 7 11 11 10 3 11 . 3 5 16 14 . . 68 118 Received Heat Transfer 893 | . . 30 . 51 18 63 27 189 18 126 72 70 52 12 24 22 17 4 10 10 6 . . . 64 8 Siege Activations . | . . . . . . . . . . . . . . . . . . . . . . . . . . . Robots Corrupted . | . . . . . . . . . . . . . . . . . . . . . . . . . . . Combat Hostiles . | . . . . . . . . . . . . . . . . . . . . . . . . . . . Parts Fried 1 | . 1 . . . . . . . . . . . . . . . . . . . . . . . . . Impact Corruptions . | . . . . . . . . . . . . . . . . . . . . . . . . . . . Robots Melted . | . . . . . . . . . . . . . . . . . . . . . . . . . . . Combat Hostiles . | . . . . . . . . . . . . . . . . . . . . . . . . . . . Parts Melted . | . . . . . . . . . . . . . . . . . . . . . . . . . . . Heat Transferred 581 | . 100 . . . . 185 111 185 . . . . . . . . . . . . . . . . . . Parts Sabotaged . | . . . . . . . . . . . . . . . . . . . . . . . . . . . Parts Stolen . | . . . . . . . . . . . . . . . . . . . . . . . . . . . Parts Stripped . | . . . . . . . . . . . . . . . . . . . . . . . . . . . Power Chain Reactions 1 | . 1 . . . . . . . . . . . . . . . . . . . . . . . . . Missiles Intercepted . | . . . . . . . . . . . . . . . . . . . . . . . . . . . Alert | -11 -10 -10 -10 -9 -8 -8 -8 -8 -7 -7 -6 -6 -5 -5 -4 -4 -4 -4 -4 -3 -3 -3 -2 -2 -2 -1 ------- Run | Scr Mat Min Exi Min Mat Gar Mat Gar Fac Gar Fac Gar Fac Gar Fac Ext Cet Arc Hub Res Tes Gar Res Qua Sec Acc Peak Influence 1885 | . 42 96 . 285 327 861 426 601 460 1195 723 1277 859 1260 893 467 609 273 487 285 789 987 567 611 1803 1885 Initial 1100 | . . 16 . . 111 212 419 88 315 243 627 359 669 37 661 364 . 243 95 255 126 591 555 318 340 1100 Average 348 | . 28 93 . 200 221 508 241 410 190 771 160 901 252 629 425 107 452 271 192 171 376 864 556 407 916 1679 Maximum Alert Level 5 | . . . . 1 1 3 2 2 2 4 3 4 3 4 3 2 2 1 2 1 3 3 2 2 5 5 Low Security (%) 44 | 100 100 100 . 27 38 . 54 19 54 . 81 . 57 4 23 80 16 . 52 79 30 . . . . . Level 1 21 | . . . . 72 61 33 . 38 24 8 9 1 21 30 43 11 8 100 44 20 26 . . 60 7 . Level 2 19 | . . . . . . 39 45 42 21 36 9 33 17 30 2 7 74 . 3 . 41 17 100 39 24 . Level 3 10 | . . . . . . 26 . . . 35 . 37 3 20 31 . . . . . 1 82 . . 51 . Level 4 2 | . . . . . . . . . . 19 . 27 . 12 . . . . . . . . . . . 13 Level 5 . | . . . . . . . . . . . . . . . . . . . . . . . . . . . High Security . | . . . . . . . . . . . . . . . . . . . . . . . . . . . Max Security . | . . . . . . . . . . . . . . . . . . . . . . . . . 16 86 Squads Dispatched 68 | . 1 . . . 1 . 1 . 7 . 13 . 12 . 4 1 . . 4 1 2 . 2 3 10 6 Investigation 18 | . 1 . . . 1 . 1 . 5 . 5 . 2 . . . . . 1 1 . . 1 . . . Extermination 12 | . . . . . . . . . 1 . 3 . 4 . 1 . . . . . 1 . . 1 1 . Reinforcement 14 | . . . . . . . . . 1 . 2 . 3 . . 1 . . 2 . 1 . 1 1 2 . Assault 13 | . . . . . . . . . . . . . . . . . . . . . . . . 1 6 6 Garrison 10 | . . . . . . . . . . . 3 . 3 . 3 . . . 1 . . . . . . . Intercept 1 | . . . . . . . . . . . . . . . . . . . . . . . . . 1 . Construction Impeded 1 | . . . . . . . . . . . . . 1 . . . . . . . . . . . . . Haulers Reinforced 1 | . . . . . . . . . . . 1 . . . . . . . . . . . . . . . Stealth | -11 -10 -10 -10 -9 -8 -8 -8 -8 -7 -7 -6 -6 -5 -5 -4 -4 -4 -4 -4 -3 -3 -3 -2 -2 -2 -1 --------- Run | Scr Mat Min Exi Min Mat Gar Mat Gar Fac Gar Fac Gar Fac Gar Fac Ext Cet Arc Hub Res Tes Gar Res Qua Sec Acc Distress Signals 20 | . . . . . . . 2 . . . . . 4 . . 2 1 . . 3 . . . 2 5 1 Communications Jammed . | . . . . . . . . . . . . . . . . . . . . . . . . . . . Distress Signals . | . . . . . . . . . . . . . . . . . . . . . . . . . . . Times Spotted 532 | . 2 2 . 8 7 17 15 19 26 26 42 25 54 29 18 21 20 2 18 10 14 8 7 24 88 30 Peak Tracking Total 29 | . 1 2 . 3 4 6 5 9 8 4 4 6 9 5 3 6 6 2 5 4 6 4 8 6 29 12 Tactical Retreats 43 | . . . . . . 1 2 1 5 1 7 5 7 2 . 2 . . . . . . . 1 7 2 Traps | -11 -10 -10 -10 -9 -8 -8 -8 -8 -7 -7 -6 -6 -5 -5 -4 -4 -4 -4 -4 -3 -3 -3 -2 -2 -2 -1 ------- Run | Scr Mat Min Exi Min Mat Gar Mat Gar Fac Gar Fac Gar Fac Gar Fac Ext Cet Arc Hub Res Tes Gar Res Qua Sec Acc Traps Triggered 36 | . 1 . . . . 4 . 2 . 5 . 10 1 4 2 1 . . 2 . 1 1 . . . 2 Indirectly . | . . . . . . . . . . . . . . . . . . . . . . . . . . . Trap Hack Attempts . | . . . . . . . . . . . . . . . . . . . . . . . . . . . Triggered . | . . . . . . . . . . . . . . . . . . . . . . . . . . . Disarmed 34 | . . . . . . . . . 4 . 6 . . . 8 9 . . 6 1 . . . . . . Reprogrammed 43 | . . . . . . . . . . . 21 . 11 . . 1 . . 5 . 5 . . . . . Reused 10 | . . . . . . . . . . . 6 . 4 . . . . . . . . . . . . . Traps Extracted . | . . . . . . . . . . . . . . . . . . . . . . . . . . . Installed . | . . . . . . . . . . . . . . . . . . . . . . . . . . . Triggered 12 | . . . . . . . . . . . 6 . 4 . . 2 . . . . . . . . . . Machines | -11 -10 -10 -10 -9 -8 -8 -8 -8 -7 -7 -6 -6 -5 -5 -4 -4 -4 -4 -4 -3 -3 -3 -2 -2 -2 -1 ---------- Run | Scr Mat Min Exi Min Mat Gar Mat Gar Fac Gar Fac Gar Fac Gar Fac Ext Cet Arc Hub Res Tes Gar Res Qua Sec Acc Machines Disabled 103 | . . 2 . 1 . 4 . 1 1 6 6 5 8 7 2 . 2 . 17 . 5 5 . 12 18 1 Max in Single Turn 13 | . . 1 . 1 . 2 . 1 1 2 2 1 2 2 1 . 1 . 13 . 1 2 . 2 2 1 Garrison Relay 18 | . . . . . . 2 . 1 . 4 . 3 . 5 . . . . . . . 3 . . . . Phase Generator 2 | . . . . . . 1 . . . . . . . 1 . . . . . . . . . . . . Network Hub 1 | . . . . . . . . . . . . . . . . . . . 1 . . . . . . . Machines Sabotaged . | . . . . . . . . . . . . . . . . . . . . . . . . . . . Garrisons Compromised . | . . . . . . . . . . . . . . . . . . . . . . . . . . . Overloaded Fab Kills . | . . . . . . . . . . . . . . . . . . . . . . . . . . . Fab Network Shutdowns 4 | . . . . . . . . . . . 1 . 1 . 1 . . . . . 1 . . . . . Hacking | -11 -10 -10 -10 -9 -8 -8 -8 -8 -7 -7 -6 -6 -5 -5 -4 -4 -4 -4 -4 -3 -3 -3 -2 -2 -2 -1 --------- Run | Scr Mat Min Exi Min Mat Gar Mat Gar Fac Gar Fac Gar Fac Gar Fac Ext Cet Arc Hub Res Tes Gar Res Qua Sec Acc Machines Accessed 135 | . 1 . 1 1 3 . 4 . 17 . 28 . 18 . 9 18 3 . 4 4 6 . 2 7 8 1 Terminals 94 | . 1 . . 1 1 . 2 . 8 . 17 . 11 . 6 18 3 . 3 2 4 . 2 7 8 . Fabricators 11 | . . . . . . . . . 2 . 3 . 3 . 1 . . . . 1 1 . . . . . Repair Stations 1 | . . . . . . . . . 1 . . . . . . . . . . . . . . . . . Recycling Units . | . . . . . . . . . . . . . . . . . . . . . . . . . . . Scanalyzers 13 | . . . . . 1 . 1 . 4 . 4 . 2 . . . . . . 1 . . . . . . Garrison Access 15 | . . . . . 1 . 1 . 2 . 4 . 2 . 2 . . . 1 . 1 . . . . 1 Total Hacks 571 | . 2 . 1 3 3 . 12 . 78 . 129 . 87 . 68 46 10 . 25 34 47 . 4 13 8 1 Successful 473 | . 1 . 1 2 3 . 12 . 68 . 112 . 75 . 51 41 10 . 18 20 33 . 4 13 8 1 Failed 97 | . 1 . . 1 . . . . 9 . 17 . 12 . 17 5 . . 7 14 14 . . . . . Catastrophic 15 | . 1 . . . . . . . . . . . 3 . 2 1 . . . 6 2 . . . . . Database Lockouts 1 | . . . . . . . . . 1 . . . . . . . . . . . . . . . . . Manual 289 | . 2 . 1 3 2 . 5 . 40 . 75 . 49 . 28 21 4 . 7 27 17 . 2 4 2 . Terminals 443 | . 2 . . 3 1 . 10 . 60 . 97 . 60 . 54 46 10 . 20 28 27 . 4 13 8 . Fabricators 83 | . . . . . . . . . 7 . 22 . 20 . 11 . . . . 5 18 . . . . . Repair Stations 1 | . . . . . . . . . 1 . . . . . . . . . . . . . . . . . Recycling Units . | . . . . . . . . . . . . . . . . . . . . . . . . . . . Scanalyzers 19 | . . . . . 1 . 1 . 8 . 4 . 4 . . . . . . 1 . . . . . . Garrison Access 24 | . . . . . 1 . 1 . 2 . 6 . 3 . 3 . . . 5 . 2 . . . . 1 Terminal Hacks 303 | . 1 . 1 . 1 . 7 . 38 . 66 . 40 . 36 36 10 . 14 14 16 . 4 13 6 . Record 59 | . . . . . . . . . 4 . 8 . 5 . 10 2 9 . 2 1 7 . . 11 . . Part Schematic 59 | . . . . . . . . . 12 . 16 . 8 . 7 6 . . 2 4 4 . . . . . Robot Schematic 10 | . . . . . . . . . 2 . 5 . 1 . . . . . 2 . . . . . . . Robot Analysis 17 | . . . . . . . . . 2 . 5 . 2 . 1 1 . . 1 2 . . 1 1 1 . Prototype ID Bank 4 | . . . . . . . 1 . . . 1 . 1 . . . . . . 1 . . . . . . Open Door 20 | . . . . . . . . . . . . . . . 1 12 1 . . . 1 . 1 1 3 . Level Access Points 5 | . . . . . . . . . . . . . 1 . 1 . . . 1 1 . . 1 . . . Branch Access Points 9 | . 1 . . . . . . . 2 . . . 1 . 1 1 . . 1 1 . . 1 . . . Emergency Access Points 2 | . . . . . . . . . 1 . . . 1 . . . . . . . . . . . . . Machine Index 9 | . . . . . . . 1 . . . 1 . 1 . 1 1 . . 1 1 1 . . . 1 . Terminal Index 1 | . . . . . . . . . 1 . . . . . . . . . . . . . . . . . Fabricator Index 1 | . . . . . . . . . 1 . . . . . . . . . . . . . . . . . Scanalyzer Index 1 | . . . . . . . . . 1 . . . . . . . . . . . . . . . . . Garrison Index 3 | . . . . . 1 . . . 1 . . . . . . . . . 1 . . . . . . . Unreport Threat 32 | . . . . . . . 4 . 2 . 9 . 8 . 5 3 . . . 1 . . . . . . Locate Traps 15 | . . . . . . . . . . . 4 . 3 . 2 3 . . 1 1 1 . . . . . Disarm Traps 11 | . . . . . . . . . 2 . 1 . . . 2 4 . . 1 1 . . . . . . Reprogram Traps 12 | . . . . . . . . . 1 . 4 . 3 . . 2 . . 1 . 1 . . . . . Dispatch Records 1 | . . . . . . . . . 1 . . . . . . . . . . . . . . . . . Security Status 1 | . . . . . . . . . . . 1 . . . . . . . . . . . . . . . Surveillance Status 1 | . . . . . . . . . . . . . . . 1 . . . . . . . . . . . Patrol Status 2 | . . . . . . . . . . . 1 . . . 1 . . . . . . . . . . . Investigation Status 1 | . . . . . . . . . . . 1 . . . . . . . . . . . . . . . Reinforcement Status 1 | . . . . . . . . . . . . . . . 1 . . . . . . . . . . . Assault Status 2 | . . . . . . . . . . . 1 . . . 1 . . . . . . . . . . . Recall Investigation 3 | . . . . . . . . . 1 . 2 . . . . . . . . . . . . . . . Recall Extermination 8 | . . . . . . . . . 1 . 3 . 2 . 1 . . . . . 1 . . . . . Recall Reinforcements 6 | . . . . . . . . . 1 . 2 . 2 . . 1 . . . . . . . . . . Registered Components 3 | . . . . . . . . . 1 . 1 . 1 . . . . . . . . . . . . . Registered Prototypes 1 | . . . . . . . . . 1 . . . . . . . . . . . . . . . . . Zone Layout 1 | . . . . . . . 1 . . . . . . . . . . . . . . . . . . . EX-Prototype ID Bank 1 | . . . 1 . . . . . . . . . . . . . . . . . . . . . . . Activate Exoskeleton 1 | . . . . . . . . . . . . . . . . . . . . . . . . . 1 . Fabricator Hacks 55 | . . . . . . . . . 7 . 15 . 12 . 8 . . . . 1 12 . . . . . Network Status 15 | . . . . . . . . . 2 . 6 . 4 . 1 . . . . . 2 . . . . . Load Schematic 19 | . . . . . . . . . 3 . 4 . 3 . 3 . . . . . 6 . . . . . Build 21 | . . . . . . . . . 2 . 5 . 5 . 4 . . . . 1 4 . . . . . Repair Station Hacks 1 | . . . . . . . . . 1 . . . . . . . . . . . . . . . . . Refit 1 | . . . . . . . . . 1 . . . . . . . . . . . . . . . . . Recycling Unit Hacks . | . . . . . . . . . . . . . . . . . . . . . . . . . . . Scanalyzer 6 | . . . . . . . . . 3 . . . 3 . . . . . . . . . . . . . Insert Component 2 | . . . . . . . . . 1 . . . 1 . . . . . . . . . . . . . Analyze 4 | . . . . . . . . . 2 . . . 2 . . . . . . . . . . . . . Garrison Access Hacks 11 | . . . . . 1 . 1 . 2 . 2 . 2 . . . . . 1 . 1 . . . . 1 Unlock Access 11 | . . . . . 1 . 1 . 2 . 2 . 2 . . . . . 1 . 1 . . . . 1 Unauthorized Hacks 97 | . . . . 2 1 . 4 . 17 . 29 . 18 . 7 5 . . 3 5 4 . . . 2 . Terminals 50 | . . . . 2 . . 3 . 13 . 15 . 8 . 2 5 . . . . . . . . 2 . Track 3 | . . . . 1 . . . . 1 . . . 1 . . . . . . . . . . . . . Assimilate 21 | . . . . . . . 1 . 5 . 7 . 2 . 2 2 . . . . . . . . 2 . Botnet 22 | . . . . 1 . . 1 . 5 . 8 . 4 . . 3 . . . . . . . . . . Operators 4 | . . . . . . . 1 . 2 . . . 1 . . . . . . . . . . . . . Fabricators 25 | . . . . . . . . . . . 7 . 8 . 3 . . . . 4 3 . . . . . Report 5 | . . . . . . . . . . . 1 . 1 . 1 . . . . 1 1 . . . . . Prioritize 9 | . . . . . . . . . . . 3 . 3 . 1 . . . . 1 1 . . . . . Siphon 9 | . . . . . . . . . . . 3 . 3 . 1 . . . . 1 1 . . . . . Haulers 1 | . . . . . . . . . . . . . . . . . . . . 1 . . . . . . Download 1 | . . . . . . . . . . . . . 1 . . . . . . . . . . . . . Repair Stations . | . . . . . . . . . . . . . . . . . . . . . . . . . . . Recycling Units . | . . . . . . . . . . . . . . . . . . . . . . . . . . . Scanalyzers 12 | . . . . . 1 . 1 . 4 . 4 . 1 . . . . . . 1 . . . . . . Extract 12 | . . . . . 1 . 1 . 4 . 4 . 1 . . . . . . 1 . . . . . . Garrison Access 10 | . . . . . . . . . . . 3 . 1 . 2 . . . 3 . 1 . . . . . Reprogram 10 | . . . . . . . . . . . 3 . 1 . 2 . . . 3 . 1 . . . . . Data Cores Recovered 2 | . . . . . . . . . . . . . . . . . . . . . . . . 1 1 . Used 1 | . . . . . . . . . . . . . . . . . . . . . . . . 1 . . Hacking Detections 46 | . 1 . . . 1 . . . 8 . 12 . 5 . 4 3 . . 3 2 3 . 1 2 . 1 Full Trace Events 3 | . 1 . . . . . . . 1 . 1 . . . . . . . . . . . . . . . Feedback Events . | . . . . . . . . . . . . . . . . . . . . . . . . . . . Feedback Blocked . | . . . . . . . . . . . . . . . . . . . . . . . . . . . Robot Schematics Acquired 10 | . . . . . . . . . 2 . 5 . 1 . . . . . 2 . . . . . . . Robots Built 1 | . . . . . . . . . . . . . 1 . . . . . . . . . . . . . Matter 238 | . . . . . . . . . . . . . 238 . . . . . . . . . . . . . Time 42 | . . . . . . . . . . . . . 42 . . . . . . . . . . . . . Total Robot Build Rating 6 | . . . . . . . . . . . . . 6 . . . . . . . . . . . . . Part Schematics Acquired 316 | . . . . . 8 . 1 . 33 . 30 . 13 . 7 6 . . 2 8 150 . . 58 . . Parts Built 21 | . . . . . . . . . 4 . 3 . 3 . 4 . . . . 2 5 . . . . . Matter 4331 | . . . . . . . . . 336 . 689 . 788 . 1120 . . . . 278 1120 . . . . . Time 857 | . . . . . . . . . 83 . 137 . 242 . 195 . . . . 69 131 . . . . . Total Part Build Rating 151 | . . . . . . . . . 16 . 17 . 21 . 35 . . . . 18 44 . . . . . Parts Repaired . | . . . . . . . . . . . . . . . . . . . . . . . . . . . Time . | . . . . . . . . . . . . . . . . . . . . . . . . . . . Parts Recycled . | . . . . . . . . . . . . . . . . . . . . . . . . . . . Recycled Matter . | . . . . . . . . . . . . . . . . . . . . . . . . . . . Retrieved Matter . | . . . . . . . . . . . . . . . . . . . . . . . . . . . Retrieved Components . | . . . . . . . . . . . . . . . . . . . . . . . . . . . Parts Scanalyzed 2 | . . . . . . . . . 1 . . . 1 . . . . . . . . . . . . . Part Schematics Acquired 2 | . . . . . . . . . 1 . . . 1 . . . . . . . . . . . . . Parts Damaged . | . . . . . . . . . . . . . . . . . . . . . . . . . . . Bothacking | -11 -10 -10 -10 -9 -8 -8 -8 -8 -7 -7 -6 -6 -5 -5 -4 -4 -4 -4 -4 -3 -3 -3 -2 -2 -2 -1 ------------ Run | Scr Mat Min Exi Min Mat Gar Mat Gar Fac Gar Fac Gar Fac Gar Fac Ext Cet Arc Hub Res Tes Gar Res Qua Sec Acc Used RIF Installer 6 | . . . . . . 1 . 1 . 1 . 1 . 1 . . . . . . . 1 . . . . Threat Obfuscator 1 | . . . . . . . . . . . . . . . . . . . . . . 1 . . . . Zone Cloak 1 | . . . . . . . . . . 1 . . . . . . . . . . . . . . . . Watcher Feeds 1 | . . . . . . . . . . . . 1 . . . . . . . . . . . . . . Program Shield 1 | . . . . . . . . 1 . . . . . . . . . . . . . . . . . . Autooverride 1 | . . . . . . . . . . . . . . 1 . . . . . . . . . . . . Robots Hacked 135 | . . . . . . . . . . 1 . 5 10 12 9 18 4 4 16 21 8 8 1 18 . . Non-combat 22 | . . . . . . . . . . . . . . . 2 4 . . 5 7 . . . 4 . . Combat 113 | . . . . . . . . . . 1 . 5 10 12 7 14 4 4 11 14 8 8 1 14 . . Autooverrided 7 | . . . . . . . . . . . . . . . 2 2 . . 1 . . 1 . 1 . . Robot Hacks Applied 203 | . . . . . . . . . . 1 . 5 11 12 8 21 4 5 23 23 51 7 1 31 . . parse_system 9 | . . . . . . . . . . . . . . . 2 1 2 . 2 . 2 . . . . . ignore_repairs 1 | . . . . . . . . . . . . . . . 1 . . . . . . . . . . . drop_inventory 1 | . . . . . . . . . . . . . . . . . . . . 1 . . . . . . purge_threat 4 | . . . . . . . . . . . . . . . . 2 . . 2 . . . . . . . reprogram_traps 1 | . . . . . . . . . . . . . . . . 1 . . . . . . . . . . block_reporting 2 | . . . . . . . . . . . . . . . . 1 . . 1 . . . . . . . map_route 1 | . . . . . . . . . . . . . . . . . . . . . . . . 1 . . mark_security 1 | . . . . . . . . . . . . . . . . 1 . . . . . . . . . . disable_scanner 5 | . . . . . . . . . . . . . . . . . . . . . 4 . . 1 . . locate_prototypes 7 | . . . . . . . . . . . . . . . . . . . . . 2 . . 5 . . report_prototypes 15 | . . . . . . . . . . . . . . . . . . . . . 15 . . . . . report_schematics 23 | . . . . . . . . . . . . . . . . . . . . . 15 . . 8 . . report_analyses 9 | . . . . . . . . . . . . . . . . . . . . . 8 . . 1 . . scatter_targeting 6 | . . . . . . . . . . . . . . . . 4 . 1 1 . . . . . . . disrupt_area 1 | . . . . . . . . . . . . . . . . . . . . 1 . . . . . . overload_power 2 | . . . . . . . . . . . . . . . . 1 . . 1 . . . . . . . wipe_record 1 | . . . . . . . . . . . . . . . . 1 . . . . . . . . . . disable_weapons 1 | . . . . . . . . . . . . . . . . 1 . . . . . . . . . . reboot_system 3 | . . . . . . . . . . . . . 1 1 . . . . 1 . . . . . . . go_dormant 4 | . . . . . . . . . . . . . 1 . . . . . 2 1 . . . . . . overwrite_iff 3 | . . . . . . . . . . . . 3 . . . . . . . . . . . . . . formatsys_low 4 | . . . . . . . . . . . . . . . 1 . . . . . 2 . . 1 . . formatsys_high 99 | . . . . . . . . . . 1 . 2 9 11 4 8 2 4 13 20 3 7 1 14 . . Relay Couplers Released 29 | . . . . . . 2 . 2 . 7 . 4 . 9 . . . . . . . 5 . . . . Machine Destruction 29 | . . . . . . 2 . 2 . 7 . 4 . 9 . . . . . . . 5 . . . . Attached 16 | . . . . . . . . 1 . 3 . 1 2 6 . 1 . . 2 . . . . . . . Robots Rewired 7 | . . . . . . . . . . . . 3 . . . 4 . . . . . . . . . . Allies Hacked . | . . . . . . . . . . . . . . . . . . . . . . . . . . . Hacks Repelled . | . . . . . . . . . . . . . . . . . . . . . . . . . . . Allies | -11 -10 -10 -10 -9 -8 -8 -8 -8 -7 -7 -6 -6 -5 -5 -4 -4 -4 -4 -4 -3 -3 -3 -2 -2 -2 -1 -------- Run | Scr Mat Min Exi Min Mat Gar Mat Gar Fac Gar Fac Gar Fac Gar Fac Ext Cet Arc Hub Res Tes Gar Res Qua Sec Acc Total Allies 166 | . . 3 . . . . 1 . 4 1 9 8 13 11 10 30 2 4 18 20 5 8 1 16 2 . Largest Group 47 | . . 3 3 2 2 . 1 . 3 2 8 5 13 18 23 47 13 15 26 21 5 7 7 14 1 1 Highest-Rated Group 2150 | . . 40 40 32 32 . 10 . 78 47 139 199 555 603 784 2150 816 819 1302 1172 229 433 376 701 1075 1075 Highest-Rated Ally 1075 | . . 16 16 16 16 . 10 . 26 26 26 47 60 60 60 156 156 150 96 115 64 115 58 64 1075 1075 Total Orders 50 | . . . . . 1 . 1 . 2 4 7 . 7 2 6 14 . . 1 . 2 . . 3 . . STAY 31 | . . . . . 1 . 1 . 2 3 7 . 4 1 4 2 . . 1 . 2 . . 3 . . ROAM 3 | . . . . . . . . . . . . . . . . 3 . . . . . . . . . . FOLLOW 16 | . . . . . . . . . . 1 . . 3 1 2 9 . . . . . . . . . . Ally Attacks 440 | . . . . 7 4 . . . . 3 18 18 36 88 35 90 41 2 31 3 17 16 . 24 1 6 Total Damage 9631 | . . . . 110 31 . . . . 68 214 342 1053 1106 385 1904 1121 55 818 222 486 853 . 615 . 248 Kills 80 | . . . . 2 1 . . . . 3 1 6 12 11 7 16 7 . 2 . 4 7 . 1 . . Allies Corrupted 6 | . . . . . . . . . . . . . 1 . . . 1 . . . . . . 4 . . Allies Melted 1 | . . . . . . . . . 1 . . . . . . . . . . . . . . . . . Intel | -11 -10 -10 -10 -9 -8 -8 -8 -8 -7 -7 -6 -6 -5 -5 -4 -4 -4 -4 -4 -3 -3 -3 -2 -2 -2 -1 ------- Run | Scr Mat Min Exi Min Mat Gar Mat Gar Fac Gar Fac Gar Fac Gar Fac Ext Cet Arc Hub Res Tes Gar Res Qua Sec Acc Robot Analysis Total 17 | . . . . . . . . . 2 . 5 . 2 . 1 1 . . 1 2 . . 1 1 1 . Derelict Logs Recovered 2 | . . 1 . 1 . . . . . . . . . . . . . . . . . . . . . . Drone Launches . | . . . . . . . . . . . . . . . . . . . . . . . . . . . Drone Recoveries . | . . . . . . . . . . . . . . . . . . . . . . . . . . . Exploration | -11 -10 -10 -10 -9 -8 -8 -8 -8 -7 -7 -6 -6 -5 -5 -4 -4 -4 -4 -4 -3 -3 -3 -2 -2 -2 -1 ------------- Run | Scr Mat Min Exi Min Mat Gar Mat Gar Fac Gar Fac Gar Fac Gar Fac Ext Cet Arc Hub Res Tes Gar Res Qua Sec Acc Turns Passed 11978 | 16 97 229 152 267 152 255 237 223 1232 608 2046 403 1659 594 915 891 249 86 126 159 512 155 21 317 303 74 Spaces Moved 30599 | 27 176 565 245 462 245 498 304 413 2704 1305 5319 1006 3932 1170 2354 1767 818 214 635 699 1495 454 194 1734 1434 430 Core 192 | 27 124 . . . . . . . . . . . . . . . . . . . 31 . . 10 . . Treads . | . . . . . . . . . . . . . . . . . . . . . . . . . . . Legs . | . . . . . . . . . . . . . . . . . . . . . . . . . . . Wheels . | . . . . . . . . . . . . . . . . . . . . . . . . . . . Hover . | . . . . . . . . . . . . . . . . . . . . . . . . . . . Flight 30407 | . 52 565 245 462 245 498 304 413 2704 1305 5319 1006 3932 1170 2354 1767 818 214 635 699 1464 454 194 1724 1434 430 Fastest Speed 10 | 50 34 34 34 37 37 37 37 37 25 25 20 20 16 16 10 10 10 10 10 10 10 10 10 10 10 10 Average Speed 20 | 50 45 34 36 37 37 37 37 37 32 25 24 20 18 16 15 10 10 10 10 10 12 10 10 10 10 10 Slowest Speed 150 | 50 50 34 114 37 42 37 37 37 42 25 25 20 20 16 16 10 98 10 98 10 150 10 10 100 10 10 Overloaded Moves . | . . . . . . . . . . . . . . . . . . . . . . . . . . . Propulsion Burnouts . | . . . . . . . . . . . . . . . . . . . . . . . . . . . Robots Hopped 398 | . . 8 . 4 2 . 3 . 20 . 53 . 52 1 20 44 32 9 24 14 51 2 1 36 17 5 Cave-ins Triggered 2 | . . . . . . . . . . . 1 . . . . . . . . . . . . . 1 . Teleports 3 | . . . . . . . . . . . . . . . . . . . . . . . . . 1 2 Exploration Rate (%) 57 | 4 26 75 60 90 20 47 20 71 38 91 83 77 44 90 28 96 93 97 45 12 73 68 7 90 79 18 Regions Visited 26 Branch Regions 10 Pre-discovered Areas 1 | . . . . 1 . . . . . . . . . . . . . . . . . . . . . . Known Exits Taken 19 | . 1 1 1 1 1 . 1 . 1 . 1 . 1 . 1 1 1 1 1 1 1 . 1 1 1 . Unknown Exits Taken 1 | 1 . . . . . . . . . . . . . . . . . . . . . . . . . . Scrap Searched 3 | . . 1 . 2 . . . . . . . . . . . . . . . . . . . . . . Spaces Dug 347 | . . . . . 7 . 81 . . 6 103 . 54 10 39 . . . 9 . 8 . . 10 20 . Terrain Destroyed 1286 | . 5 14 . 70 31 99 145 27 . 22 224 11 171 100 75 11 20 . 169 . 32 5 . 22 33 . Melee . | . . . . . . . . . . . . . . . . . . . . . . . . . . . Projectile 610 | . . . . . 4 5 4 3 . 22 172 11 154 22 75 11 20 . 15 . 32 5 . 22 33 . AOE 676 | . 5 14 . 70 27 94 141 24 . . 52 . 17 78 . . . . 154 . . . . . . . Terrain Rammed . | . . . . . . . . . . . . . . . . . . . . . . . . . . . Walls Destroyed . | . . . . . . . . . . . . . . . . . . . . . . . . . . . Machines Disabled . | . . . . . . . . . . . . . . . . . . . . . . . . . . . Actions | -11 -10 -10 -10 -9 -8 -8 -8 -8 -7 -7 -6 -6 -5 -5 -4 -4 -4 -4 -4 -3 -3 -3 -2 -2 -2 -1 --------- Run | Scr Mat Min Exi Min Mat Gar Mat Gar Fac Gar Fac Gar Fac Gar Fac Ext Cet Arc Hub Res Tes Gar Res Qua Sec Acc Total 35099 | 28 185 588 305 543 296 537 401 456 2985 1479 5890 1154 4685 1513 2813 2425 894 268 660 772 1703 554 193 1803 1517 452 Wait 3335 | . . 24 58 74 40 . 79 . 229 87 513 35 654 193 382 605 50 58 3 55 126 47 . 1 13 9 Move 29841 | 26 175 548 244 453 240 496 298 411 2663 1303 5213 1004 3832 1166 2316 1687 772 201 597 675 1399 449 191 1664 1399 419 Hop 325 | . . 8 . 4 2 . 2 . 20 . 51 . 47 1 17 35 13 3 13 9 44 1 1 33 16 5 Pick Up 72 | . . . . . 2 1 2 1 10 3 5 5 1 4 2 1 4 . . . 4 . . 18 9 . Fast Attach 79 | 1 5 1 2 . 2 1 . 1 11 5 10 . 4 1 3 . 4 . 5 . 10 . . 2 11 . Attach 33 | . . . . . 1 . . . 4 . . . 3 1 2 2 . . 1 . 1 . . 2 10 6 Detach 11 | . . . 1 . . . . . 3 . . . 2 . . . . . . . . . . . 3 2 Swap 54 | . . . . . . . 2 1 6 . 9 4 11 6 4 1 8 . 1 . 1 . . . . . Drop 100 | . . . . . 2 1 . . 14 2 14 8 8 1 12 2 10 . 2 1 12 . . 6 5 . Fire 828 | . 5 4 . 10 7 25 18 17 25 49 74 40 94 45 58 35 32 6 29 23 91 18 1 70 47 5 Melee . | . . . . . . . . . . . . . . . . . . . . . . . . . . . Ram 2 | 1 . . . . . . . . . . . . . . . . . . . . . . . 1 . . Kick . | . . . . . . . . . . . . . . . . . . . . . . . . . . . Crush . | . . . . . . . . . . . . . . . . . . . . . . . . . . . Escape Stasis 191 | . . . . . . . . . . 5 1 29 8 77 8 35 . . . . . 18 . . 4 6 Rewire 59 | . . . . . . . . . . 1 . 1 9 10 5 5 1 . 9 9 2 1 . 6 . . Trap . | . . . . . . . . . . . . . . . . . . . . . . . . . . . Miscellaneous 169 | . . 3 . 2 . 13 . 25 . 24 . 28 12 8 4 17 . . . . 13 20 . . . . Route ------- -11/Scrapyard -10/Materials -10/Mines (discovered 3 exits: *Mat x2 / *Exi) -10/Exiles -9/Mines (discovered 2 exits: *Mat x2) -8/Materials (discovered 2 exits: *Fac / Gar) -8/Garrison -8/Materials -8/Garrison (discovered 3 exits: *Fac x3) -7/Factory (discovered 5 exits: *Fac / *Low x2 / Gar / Gar) -7/Garrison (discovered 3 exits: *Fac x3) -6/Factory (discovered 7 exits: *Fac x4 / *Low / Gar / Gar) -6/Garrison (discovered 3 exits: *Fac x3) -5/Factory (discovered 8 exits: *Fac x4 / *Upp x2 / Gar / Gar) -5/Garrison (discovered 3 exits: *Fac x3) -4/Factory (discovered 8 exits: *Res x4 / *Upp x2 / *Ext x2) -4/Extension (discovered 3 exits: *Res x2 / *Cet) -4/Cetus (discovered 3 exits: *Res x2 / *Arc) -4/Archives (discovered 3 exits: *Res / *Hub x2) -4/Hub_04(d) (discovered 5 exits: *Res x4 / Gar) -3/Research (discovered 6 exits: Res x3 / Arm / *Tes x2) -3/Testing (discovered 2 exits: *Res / Gar) -3/Garrison (discovered 2 exits: *Res x2) -2/Research (discovered 5 exits: Acc x3 / *Qua x2) -2/Quarantine (discovered 2 exits: *Acc / *Sec) -2/Section 7 -1/Access (discovered 2 exits: *Sur / Gar) Tau Ceti IV Orbit History --------- Turn | Location | Event 8 | -11/Scrapyard | Discovered new exit (range 14) 17 | -11/Scrapyard | Entered Materials 92 | -10/Materials | Upgraded with Propulsion slot (x2) 100 | -10/Materials | Identified exit to Mines 114 | -10/Materials | Entered Mines 136 | -10/Mines | Discovered new exit (range 9) 139 | -10/Mines | YI-UF0 nonchalantly dropped a Grenade Launcher on the ground 193 | -10/Mines | A weapon hastily lodged in a ceiling crevice suddenly fell to the ground 269 | -10/Mines | Identified exit to Materials 284 | -10/Mines | Assisted by bots powering up and referring to "LRC-V3" 300 | -10/Mines | Found a damaged Exp. Sensor Array with a note attached 304 | -10/Mines | Upgraded with Utility slot (x1) 304 | -10/Mines | Upgraded with Weapon slot (x1) 304 | -10/Mines | Found Prototype Device 304 | -10/Mines | Identified Exp. Sensor Array 319 | -10/Mines | Deemed a non-threat by the Exiles lab entrance 320 | -10/Mines | Discovered new exit (range 5) 321 | -10/Mines | Identified exit to Exiles 325 | -10/Mines | Build established: Mutant 343 | -10/Mines | Entered Exiles 343 | -10/Exiles | Accompanied by 3 allies 352 | -10/Exiles | Met 8R-AWN 358 | -10/Exiles | Met EX-HEX 370 | -10/Exiles | Met EX-BIN 374 | -10/Exiles | Aligned with FarCom system 374 | -10/Exiles | Given EX-Vault access code 384 | -10/Exiles | Opened EX-Vault 388 | -10/Exiles | Upgraded with Propulsion slot (x3) 388 | -10/Exiles | Upgraded with Utility slot (x4) 388 | -10/Exiles | Upgraded with Weapon slot (x2) 389 | -10/Exiles | Found AWS/Gauss 397 | -10/Exiles | Found Flying Fortress v7 408 | -10/Exiles | Warned to stay clear of 0b10 Research branches 419 | -10/Exiles | Met EX-DEC 433 | -10/Exiles | Discovered new exit (range 10) 436 | -10/Exiles | Identified exit to Mines 495 | -10/Exiles | Stole two prototypes: AWS/Gauss, Flying Fortress v7 495 | -10/Exiles | Entered Mines 495 | -9/Mines | Accompanied by 3 allies 497 | -9/Mines | Reached level 2 502 | -9/Mines | Met a Derelict bent on vengeance 511 | -9/Mines | Discovered new exit (range 6) 512 | -9/Mines | Identified exit to Materials 556 | -9/Mines | Learned location of Zion (-7) 571 | -9/Mines | Discovered exit to Materials (range 14) 680 | -9/Mines | Reached level 3 762 | -9/Mines | Entered Materials 762 | -8/Materials | Accompanied by 2 allies 764 | -8/Materials | Reached level 4 897 | -8/Materials | Discovered new exit (range 10) 913 | -8/Materials | Identified exit to Garrison 914 | -8/Materials | Entered Garrison 916 | -8/Garrison | Reached level 5 936 | -8/Garrison | Triggered checkpoint 1032 | -8/Garrison | Build established: Wizard-Scout 1036 | -8/Garrison | Triggered checkpoint 1050 | -8/Garrison | Garrison Relay disabled 1062 | -8/Garrison | Discovered new exit (range 17) 1068 | -8/Garrison | Identified exit to Materials 1071 | -8/Garrison | Installed Relay Interface Framework 1071 | -8/Garrison | Reached level 6 1133 | -8/Garrison | Phase Generator disabled 1169 | -8/Garrison | Entered Materials 1290 | -8/Materials | Reached level 7 1377 | -8/Materials | Identified exit to Garrison 1406 | -8/Materials | Entered Garrison 1410 | -8/Garrison | Triggered checkpoint 1449 | -8/Garrison | Triggered checkpoint 1467 | -8/Garrison | Garrison Relay disabled 1467 | -8/Garrison | Reached level 8 1514 | -8/Garrison | Triggered checkpoint 1514 | -8/Garrison | Triggered checkpoint 1523 | -8/Garrison | Discovered new exit (range 19) 1574 | -8/Garrison | Destroyed 7 combat bots 1586 | -8/Garrison | Discovered new exit (range 10) 1590 | -8/Garrison | Identified exit to Factory 1593 | -8/Garrison | Expanded RIF knowledge: Program Shield 1593 | -8/Garrison | Reached level 9 1608 | -8/Garrison | Triggered checkpoint 1623 | -8/Garrison | Discovered exit to Factory (range 13) 1629 | -8/Garrison | Entered Factory 1631 | -7/Factory | FarCom data flow suspended 1631 | -7/Factory | Reached level 10 1994 | -7/Factory | Discovered new exit (range 6) 1996 | -7/Factory | Identified exit to Lower Caves 2082 | -7/Factory | Central database locked down 2376 | -7/Factory | Fabricated Adv. Signal Interpreter? 2484 | -7/Factory | Identified exit to Garrison 2485 | -7/Factory | Reached level 11 2486 | -7/Factory | Upgraded with Utility slot (x4) 2564 | -7/Factory | Discovered new exit (range 19) 2729 | -7/Factory | Fabricated Coil Gun (x2) 2838 | -7/Factory | Identified exit to Garrison 2861 | -7/Factory | Entered Garrison 2861 | -7/Garrison | Accompanied by 1 ally 2863 | -7/Garrison | Reached level 12 2874 | -7/Garrison | Triggered checkpoint 2894 | -7/Garrison | Garrison Relay disabled 2990 | -7/Garrison | Triggered checkpoint 3000 | -7/Garrison | Reached level 13 3025 | -7/Garrison | Discovered new exit (range 9) 3027 | -7/Garrison | Identified exit to Factory 3068 | -7/Garrison | Garrison Relay disabled 3079 | -7/Garrison | Discovered exit to Factory (range 9) 3083 | -7/Garrison | Expanded RIF knowledge: Zone Cloak 3102 | -7/Garrison | Triggered checkpoint 3126 | -7/Garrison | Upgraded with Utility slot (x1) 3132 | -7/Garrison | Triggered checkpoint 3155 | -7/Garrison | Discovered exit to Factory (range 9) 3172 | -7/Garrison | Garrison Relay disabled 3172 | -7/Garrison | Reached level 14 3182 | -7/Garrison | Triggered checkpoint 3210 | -7/Garrison | Triggered checkpoint 3210 | -7/Garrison | Garrison Relay disabled 3340 | -7/Garrison | Triggered checkpoint 3344 | -7/Garrison | Triggered checkpoint 3469 | -7/Garrison | Entered Factory 3469 | -6/Factory | Accompanied by 2 allies 3471 | -6/Factory | Reached level 15 3502 | -6/Factory | Reached level 16 3514 | -6/Factory | Upgraded with Utility slot (x1) 3722 | -6/Factory | Discovered new exit (range 19) 3737 | -6/Factory | Crushed by falling debris 3863 | -6/Factory | Identified exit to Factory 3941 | -6/Factory | Identified exit to Garrison 4023 | -6/Factory | Garrison activated, responded to threat 4031 | -6/Factory | Reached level 17 4276 | -6/Factory | Upgraded with Power slot (x1) 4318 | -6/Factory | Core integrity fell below 50% 4409 | -6/Factory | Discovered exit to Factory (range 15) 4507 | -6/Factory | Discovered new exit (range 24) 4513 | -6/Factory | Identified exit to Lower Caves 4721 | -6/Factory | Found Prototype Processor 4723 | -6/Factory | Discovered exit to Factory (range 3) 4727 | -6/Factory | Reached level 18 4804 | -6/Factory | Discovered exit to Factory (range 11) 4840 | -6/Factory | Identified Exp. Signal Interpreter 5034 | -6/Factory | Spotted B-75 Beast 5111 | -6/Factory | Fabricated Exp. Signal Interpreter (x1) 5233 | -6/Factory | Fabricated Exp. Cesium-ion Thruster? 5300 | -6/Factory | Fabricated Exp. Cesium-ion Thruster (x1) 5473 | -6/Factory | Local fabrication network quarantined 5515 | -6/Factory | Identified exit to Garrison 5515 | -6/Factory | Entered Garrison 5522 | -6/Garrison | Garrison Relay disabled 5558 | -6/Garrison | Triggered checkpoint 5607 | -6/Garrison | Reached level 19 5658 | -6/Garrison | Triggered checkpoint 5661 | -6/Garrison | Triggered checkpoint 5694 | -6/Garrison | Triggered checkpoint 5707 | -6/Garrison | Discovered exit to Factory (range 12) 5711 | -6/Garrison | Expanded RIF knowledge: Patrol Navigation 5754 | -6/Garrison | Triggered checkpoint 5780 | -6/Garrison | Discovered exit to Factory (range 10) 5804 | -6/Garrison | Triggered checkpoint 5819 | -6/Garrison | Garrison Relay disabled 5846 | -6/Garrison | Discovered exit to Factory (range 12) 5854 | -6/Garrison | Garrison Relay disabled 5863 | -6/Garrison | Spotted B-75 Beast 5918 | -6/Garrison | Entered Factory 5918 | -5/Factory | Accompanied by 4 allies 5920 | -5/Factory | Reached level 20 5954 | -5/Factory | Upgraded with Utility slot (x1) 6086 | -5/Factory | Reached level 21 6134 | -5/Factory | Discovered new exit (range 8) 6203 | -5/Factory | Garrison activated, responded to threat 6469 | -5/Factory | Reached level 22 6516 | -5/Factory | Identified exit to Factory 6617 | -5/Factory | Discovered new exit (range 21) 6692 | -5/Factory | Discovered exit to Factory (range 18) 6847 | -5/Factory | Discovered exit to Factory (range 11) 6982 | -5/Factory | Fabricated Exp. Terrain Scanner (x1) 7017 | -5/Factory | Fabricated Exp. Q-thruster (x1) 7027 | -5/Factory | Fabricated Energy Mantle (x1) 7027 | -5/Factory | Fabricated I-47 Archangel? 7136 | -5/Factory | Local fabrication network quarantined 7144 | -5/Factory | Identified exit to Upper Caves 7146 | -5/Factory | Identified exit to Garrison 7395 | -5/Factory | Garrison activated, responded to threat 7402 | -5/Factory | Identified exit to Garrison 7577 | -5/Factory | Entered Garrison 7577 | -5/Garrison | Accompanied by 10 allies 7596 | -5/Garrison | Triggered checkpoint 7605 | -5/Garrison | Garrison Relay disabled 7641 | -5/Garrison | Triggered checkpoint 7641 | -5/Garrison | Triggered checkpoint 7644 | -5/Garrison | Triggered checkpoint 7655 | -5/Garrison | Reached level 23 7726 | -5/Garrison | Discovered exit to Factory (range 9) 7731 | -5/Garrison | Garrison Relay disabled 7734 | -5/Garrison | Triggered checkpoint 7758 | -5/Garrison | Upgraded with Utility slot (x1) 7765 | -5/Garrison | Discovered exit to Factory (range 24) 7782 | -5/Garrison | Triggered checkpoint 7964 | -5/Garrison | Triggered checkpoint 7971 | -5/Garrison | Garrison Relay disabled 7984 | -5/Garrison | Discovered exit to Factory (range 20) 8006 | -5/Garrison | Expanded RIF knowledge: Autooverride 8057 | -5/Garrison | Garrison Relay disabled 8085 | -5/Garrison | Phase Generator disabled 8094 | -5/Garrison | Garrison Relay disabled 8171 | -5/Garrison | Entered Factory 8171 | -4/Factory | Accompanied by 16 allies 8173 | -4/Factory | Reached level 24 8202 | -4/Factory | Discovered new exit (range 26) 8358 | -4/Factory | Discovered new exit (range 17) 8360 | -4/Factory | Discovered new exit (range 18) 8377 | -4/Factory | Identified exit to Research 8651 | -4/Factory | Reached level 25 8651 | -4/Factory | Identified exit to Upper Caves 8651 | -4/Factory | Identified exit to Extension 8716 | -4/Factory | Fabricated Adv. Cloaking Device (x1) 8767 | -4/Factory | Fabricated Exp. Thermal Defense Suite? 8856 | -4/Factory | Fabricated Exp. Q-thruster (x1) 8876 | -4/Factory | Garrison activated, responded to threat 8881 | -4/Factory | Local fabrication network quarantined 8911 | -4/Factory | Fabricated Exp. Q-thruster (x1) 9086 | -4/Factory | Entered Extension 9086 | -4/Extension | Accompanied by 20 allies 9113 | -4/Extension | Rescued a captive Derelict 9114 | -4/Extension | Rescued a captive Derelict 9117 | -4/Extension | Identified exit to Cetus 9158 | -4/Extension | Rescued a captive Derelict 9176 | -4/Extension | Rescued A7 9180 | -4/Extension | Spotted B-86 Titan 9181 | -4/Extension | Rescued a captive Derelict 9184 | -4/Extension | Spotted B-86 Titan 9186 | -4/Extension | Discovered exit to Research (range 19) 9187 | -4/Extension | Assimilated Titan 7a with formatsys_high 9188 | -4/Extension | Assimilated Titan 7b with formatsys_high 9222 | -4/Extension | Rescued a captive Derelict 9223 | -4/Extension | Rescued a captive Derelict 9257 | -4/Extension | Rescued a captive Derelict 9259 | -4/Extension | Rescued a captive Derelict 9264 | -4/Extension | Rescued a captive Derelict 9304 | -4/Extension | Rescued a captive Derelict 9305 | -4/Extension | Rescued a captive Derelict 9314 | -4/Extension | Rescued a captive Derelict 9314 | -4/Extension | Rescued a captive Derelict 9323 | -4/Extension | Rescued a captive Derelict 9325 | -4/Extension | Discovered exit to Research (range 10) 9412 | -4/Extension | Build established: Commander-Scout 9515 | -4/Extension | Reached level 26 9977 | -4/Extension | Entered Cetus 9977 | -4/Cetus | Accompanied by 13 allies (A7) 9979 | -4/Cetus | Spotted Cetus Guard 9979 | -4/Cetus | Spotted Cetus Guard 9979 | -4/Cetus | Spotted Cetus Guard 9979 | -4/Cetus | Spotted Cetus Guard 9982 | -4/Cetus | Acquired a Cetus Manufacturing Module code from A7 9991 | -4/Cetus | Allies destroyed Cetus Guard 9999 | -4/Cetus | Allies destroyed Cetus Guard 10000 | -4/Cetus | Destroyed Cetus Guard 10002 | -4/Cetus | Allies destroyed Cetus Guard 10039 | -4/Cetus | Started Cetus Manufacturing Module 10050 | -4/Cetus | Cetus Manufacturing Module disabled 10055 | -4/Cetus | Discovered new exit (range 30) 10060 | -4/Cetus | Found a strange terminal 10074 | -4/Cetus | Identified exit to Archives 10091 | -4/Cetus | Spotted Cetus Guard 10091 | -4/Cetus | Spotted Cetus Guard 10095 | -4/Cetus | Spotted Cetus Guard 10095 | -4/Cetus | Destroyed Cetus Guard 10103 | -4/Cetus | Spotted Cetus Guard 10104 | -4/Cetus | Discovered exit to Research (range 29) 10109 | -4/Cetus | Destroyed Cetus Guard 10115 | -4/Cetus | Allies destroyed Cetus Guard 10118 | -4/Cetus | Destroyed Cetus Guard 10134 | -4/Cetus | Met Revision 17 10158 | -4/Cetus | Destroyed Revision 17 10166 | -4/Cetus | Discovered exit to Research (range 21) 10226 | -4/Cetus | Entered Archives 10226 | -4/Archives | Accompanied by 12 allies (A7) 10228 | -4/Archives | Discovered new exit (range 22) 10231 | -4/Archives | Discovered exit to Research (range 20) 10237 | -4/Archives | Unable to access archive contents 10239 | -4/Archives | Unable to access archive contents 10239 | -4/Archives | Discovered new exit (range 15) 10246 | -4/Archives | Identified exit to Hub_04(d) 10267 | -4/Archives | Build established: Wizard-Scout 10312 | -4/Archives | Entered Hub_04(d) 10312 | -4/Hub_04(d) | Accompanied by 12 allies 10313 | -4/Hub_04(d) | Discovered exit to Research (range 16) 10337 | -4/Hub_04(d) | Discovered exit to Research (range 24) 10342 | -4/Hub_04(d) | Garrison activated, responded to threat 10352 | -4/Hub_04(d) | Reached level 27 10361 | -4/Hub_04(d) | Discovered exit to Research (range 19) 10415 | -4/Hub_04(d) | Identified exit to Garrison 10434 | -4/Hub_04(d) | Network Hub disabled 10438 | -4/Hub_04(d) | Entered Research 10438 | -3/Research | Accompanied by 1 ally 10450 | -3/Research | Identified exit to Armory 10450 | -3/Research | Identified exit to Testing 10450 | -3/Research | Identified exit to Research 10518 | -3/Research | Spotted B-86 Titan 10519 | -3/Research | Assimilated Titan 8a with formatsys_high 10588 | -3/Research | Spotted B-86 Titan 10588 | -3/Research | Assimilated Titan 8b with formatsys_high 10597 | -3/Research | Fabricated Lgt. Quantum Reactor? 10597 | -3/Research | Entered Testing 10597 | -3/Testing | Accompanied by 1 ally 10599 | -3/Testing | Reached level 28 10654 | -3/Testing | Spotted Striker 10654 | -3/Testing | Spotted Striker 10686 | -3/Testing | Fabricated Exp. Energy Well? 10751 | -3/Testing | Discovered exit to Research (range 30) 10752 | -3/Testing | Spotted PL-9LQ7J96C4Q 10769 | -3/Testing | Found Portable AFG 10771 | -3/Testing | Destroyed PL-9LQ7J96C4Q 10846 | -3/Testing | Spotted Alpha 7 10859 | -3/Testing | Destroyed Striker 10869 | -3/Testing | Destroyed Striker 10882 | -3/Testing | Core integrity fell below 50% 10911 | -3/Testing | Destroyed Alpha 7 10923 | -3/Testing | Stole the SGEMP Prototype 10923 | -3/Testing | Reached level 29 10978 | -3/Testing | Fabricated Exp. Phase Shifter (x1) 11015 | -3/Testing | Fabricated Exp. Weapon Cycler (x1) 11040 | -3/Testing | Fabricated Lgt. Quantum Reactor (x2) 11101 | -3/Testing | Local fabrication network quarantined 11106 | -3/Testing | Identified exit to Garrison 11109 | -3/Testing | Entered Garrison 11114 | -3/Garrison | Garrison Relay disabled 11122 | -3/Garrison | Triggered checkpoint 11127 | -3/Garrison | Spotted B-86 Titan 11127 | -3/Garrison | Assimilated Titan 8c with formatsys_high 11144 | -3/Garrison | Discovered exit to Research (range 20) 11148 | -3/Garrison | Triggered checkpoint 11150 | -3/Garrison | Triggered checkpoint 11160 | -3/Garrison | Triggered checkpoint 11176 | -3/Garrison | Garrison Relay disabled 11189 | -3/Garrison | Discovered exit to Research (range 26) 11210 | -3/Garrison | Expanded RIF knowledge: Threat Obfuscation 11212 | -3/Garrison | Triggered checkpoint 11212 | -3/Garrison | Garrison Relay disabled 11264 | -3/Garrison | Entered Research 11264 | -2/Research | Accompanied by 6 allies 11266 | -2/Research | Reached level 30 11276 | -2/Research | Identified exit to Access 11276 | -2/Research | Identified exit to Quarantine 11285 | -2/Research | Entered Quarantine 11308 | -2/Quarantine | Found Core Cannon 11345 | -2/Quarantine | Found Alien Artifact 11356 | -2/Quarantine | Found Hpw. Transdimensional Reconstructor 11362 | -2/Quarantine | Reached level 31 11371 | -2/Quarantine | Discovered exit to Access (range 28) 11392 | -2/Quarantine | Found Dimensional Node Initializer 11393 | -2/Quarantine | Found Dimensional Node Initializer 11394 | -2/Quarantine | Found Dimensional Node Initializer 11396 | -2/Quarantine | Found Hpw. Transdimensional Reconstructor 11397 | -2/Quarantine | Found Transdimensional Reconstructor 11398 | -2/Quarantine | Found Hpw. Transdimensional Reconstructor 11452 | -2/Quarantine | Met incapacitated Sigix Warrior 11452 | -2/Quarantine | Lockdown squad dispatched 11452 | -2/Quarantine | Identified Core Reset Matrix 11452 | -2/Quarantine | Used Core Reset Matrix 11456 | -2/Quarantine | Sensed 7 artifacts in vicinity 11457 | -2/Quarantine | Acquired the access code to the Sigix quarantine chamber 11457 | -2/Quarantine | Unlocked Sigix quarantine chamber 11471 | -2/Quarantine | Found Sigix Broadsword 11481 | -2/Quarantine | Found Stasis Generator 11494 | -2/Quarantine | Spotted Lightning 11494 | -2/Quarantine | Spotted Lightning 11494 | -2/Quarantine | Spotted Lightning 11495 | -2/Quarantine | Discovered exit to Access (range 19) 11500 | -2/Quarantine | Found Matter Drive 11509 | -2/Quarantine | Found Terrabomb 11512 | -2/Quarantine | Found Terrabomb 11512 | -2/Quarantine | Used Terrabomb 11516 | -2/Quarantine | Found Terrabomb 11556 | -2/Quarantine | Found Subatomic Replicator 11583 | -2/Quarantine | First assault squad dispatched 11590 | -2/Quarantine | Cryocooling Duct disabled 11594 | -2/Quarantine | Spotted Fortress 11601 | -2/Quarantine | Discovered new exit (range 6) 11601 | -2/Quarantine | Identified exit to Section 7 11602 | -2/Quarantine | Entered Section 7 11603 | -2/Section 7 | Sensed 20 artifacts in vicinity 11604 | -2/Section 7 | Reached level 32 11604 | -2/Section 7 | Spotted S7 Guard 11607 | -2/Section 7 | Found Integrated Singularity Reactor 11628 | -2/Section 7 | Found Integrity Redistributor 11679 | -2/Section 7 | Found Integrated Reactor 11679 | -2/Section 7 | Installed Integrated Reactor, increased core energy generation (+10) 11687 | -2/Section 7 | Spotted S7 Guard 11688 | -2/Section 7 | Found Integrated Heat Negator 11688 | -2/Section 7 | Installed Integrated Heat Negator, increased core heat dissipation (+40) 11689 | -2/Section 7 | Used Terrabomb 11691 | -2/Section 7 | Crushed by falling debris 11699 | -2/Section 7 | Spotted Alpha 7 11715 | -2/Section 7 | Found Integrated Dissipator 11716 | -2/Section 7 | Installed Integrated Dissipator, increased core heat dissipation (+20) 11725 | -2/Section 7 | Found Integrated Reactor 11725 | -2/Section 7 | Installed Integrated Reactor, increased core energy generation (+10) 11729 | -2/Section 7 | Installed Integrated Singularity Reactor, increased core energy generation (+20) 11742 | -2/Section 7 | Used Terrabomb 11744 | -2/Section 7 | Found Integrated Dissipator 11744 | -2/Section 7 | Installed Integrated Dissipator, increased core heat dissipation (+20) 11746 | -2/Section 7 | Found Integrated Dissipator 11746 | -2/Section 7 | Installed Integrated Dissipator, increased core heat dissipation (+20) 11751 | -2/Section 7 | Found LRC Boosters 11751 | -2/Section 7 | Installed LRC Boosters, increased mass support (+10) 11753 | -2/Section 7 | Found LRC Insulator 11753 | -2/Section 7 | Installed LRC Insulator, gained EM resistance (25) 11774 | -2/Section 7 | Found Integrated Dissipator 11774 | -2/Section 7 | Installed Integrated Dissipator, increased core heat dissipation (+20) 11778 | -2/Section 7 | Spotted B-99 Colossus 11782 | -2/Section 7 | Spotted Executioner 11782 | -2/Section 7 | Spotted Executioner 11786 | -2/Section 7 | Found Terrabomb 11787 | -2/Section 7 | Found Terrabomb 11788 | -2/Section 7 | Found Terrabomb 11790 | -2/Section 7 | Used Terrabomb 11791 | -2/Section 7 | Found Transdimensional Reconstructor 11794 | -2/Section 7 | Found Matter Drive 11797 | -2/Section 7 | Spotted Striker 11797 | -2/Section 7 | Spotted Striker 11817 | -2/Section 7 | Found Sigix Quantum Sheargun 11818 | -2/Section 7 | Found Sigix Quantum Sheargun 11820 | -2/Section 7 | Found Sigix Quantum Sheargun 11834 | -2/Section 7 | Spotted Executioner 11834 | -2/Section 7 | Spotted Executioner 11839 | -2/Section 7 | Reached level 33 11839 | -2/Section 7 | Activated Sigix Exoskeleton 11839 | -2/Section 7 | Received instructions from Sigix Warrior 11872 | -2/Section 7 | Discovered exit to Access (range 8) 11873 | -2/Section 7 | Scanned by Researcher 11874 | -2/Section 7 | Intercept squad dispatched 11878 | -2/Section 7 | Warped through subspace 11879 | -2/Section 7 | Core integrity fell below 50% 11893 | -2/Section 7 | Spotted Tracker 11893 | -2/Section 7 | Spotted Tracker 11894 | -2/Section 7 | Spotted Executioner 11896 | -2/Section 7 | Used Terrabomb 11905 | -2/Section 7 | Entered Access 11905 | -1/Access | Accompanied by 1 ally (Sigix Warrior) 11906 | -1/Access | Spotted B-99 Colossus 11912 | -1/Access | Identified exit to Garrison 11915 | -1/Access | Reached level 34 11943 | -1/Access | Initialized slip node 11946 | -1/Access | Warped through subspace to slip node 11947 | -1/Access | Initialized slip node 11948 | -1/Access | Warped through subspace to slip node 11964 | -1/Access | Discovered new exit (range 25) 11967 | -1/Access | Used Terrabomb 11971 | -1/Access | Identified exit to Surface 11979 | -1/Access | Reached level 35 11979 | *** | Destroyed 0B10! Last Messages --------------- 11948_ Warped through subspace, drawn to slip node. 11948_ Synergy achieved. Target locked: P-80 Master. 11948_ Quantum Shear penetrates P-80 Master. 11948_ P-80 Master Prototype Energy Gun severed. 11953_ Upgraded: Terrain Scan Density (+600) 11954_ W-44 Eye sends out distress signal. 11955_ Penetrated by Slug. 11962_ Quantum Shear penetrates Wall. 11964_ EXIT=FOUND 11967_ Terrabomb activated. 11968_ Slug penetrates Sigix Warrior. 11968_ U-05 Engineer builds a Wall. 11968_ O-32 Director: "IFF HANDSHAKE FAILED. SECURING TERMINAL." 11968_ K-01 Serf cleans the Longscan Aggregator. 11969_ Quantum Shear penetrates Main Access Shell. 11969_ Main Access Shell breached. 11971_ EXIT=IDENTIFIED: SURFACE 11978_ Quantum Shear penetrates W-44 Eye. 11978_ W-44 Eye Unknown Hover Unit severed. 11979_ Reached level 35. Map ----- +----------------------------------------------------+ | ????????????? ?# ? ?? ?"" ??????????? | | ??????? ?#"""? # ? ""? ###??????? | | ??? ???? # ?""?? ?? # #?? "" ?#####????? | | ????##?### " ? ? # # ""? ####?#???? | | ??#???#?## ? ? ? # "" #######??? | | ###?######? ? ? # + ?? "" ??######?#?? | | ???####### ? + ???/ ? " ##?######? | | ########## ? ?? # # ? ###?##?### | | ?##?##?### ? ??#? ? ? ? ?? #####??#?# | | #########?############# #?#######?#######?#?### | | ### ### ##?########?###?#?## | | ?## ? ##? ? #?#########???###### | | ### ??# ? #####?#######??####? | | ### ##? #?#???##?##?######## | | ?## ### ############?###?### | | ### ### ####?###?#####?#??## | | ###########"+######? ? #######?######?##### | | ##### """ " " ##"""""""?""##############?##### | | ### """T""" " """""""""""########?##########? | | #"""""" """ " """"""""?""######?#####?#####?# | | " """""?"""""?##?####?##?######## | | " " ? #################### | | " " """""" ######?#####?###?### | | " " " " ########??########## | | " " " "" " ##############?##### | | " " " "@ " ####?###?#########?# | | " ; #################?## | | ][= ; ; X"""""" #########??##?##?### | | [[ =; ; ########?#?#?####?#? | | [[ w; "" ###? ? ? #?####?# | | ; """""""""""""#? #?###### | | ; """" "## ? ??####### | | " """ "##? ?######?# | | """"";;;;;" " """ "## ? #?#?#### | | " " " "T "## ###?#### | | " " " """ "## ######## | | " " " """ " # ? ###?#### | | """""""" """"""""" "###?+?#######?## | | + ? # | | " ? ?#? | | " """""+"""""""""""""""""""####+###??### # ? | | " "" " ##? ### # | | " "" " #? ### # | | """" "" ""G"" " ###? ### ?+ | | """" ""! " " " ### ### ? ?? | | " "" " " " #### ### # | | " ""= " #### ### ???? | | " "" " ##### ? ?##? ? ?? | | " "" " ##### #?# ???? | | " " """""""""""" ###### #???????? | +----------------------------------------------------+ Best States ------------- Heat Dissipation 235 Energy Generation 184 Energy Capacity 2340 Matter Stores 1000 Matter Capacity 1000 Sight Range 26 Robot Scan Range 60 Terrain Scan Range 30 Terrain Scan Density 1610 ECM Strength 3 Cloak Strength 4 Corruption Prevention 12 Resistance: KI 20 Resistance: TH 30 Resistance: EX 20 Resistance: EM 25 Weapon Cycling 30 Phase Shifting 20 Evasion (%) 88 Offensive Hacking 100 Defensive Hacking 77 Relay Coupler Types 1400 Relay Coupler Value 6 Item Schematics ----------------- None Robot Schematics ------------------ None Fabricated ------------ Adv. Signal Interpreter | x2 | -7/Factory Coil Gun | x2 | -7/Factory Exp. Signal Interpreter | x1 | -6/Factory Exp. Cesium-ion Thruster | x1 | -6/Factory Exp. Cesium-ion Thruster | x1 | -6/Factory Exp. Terrain Scanner | x1 | -5/Factory Exp. Q-thruster | x1 | -5/Factory | Preloaded I-47 Archangel | x1 | -5/Factory Energy Mantle | x1 | -5/Factory Adv. Cloaking Device | x1 | -4/Factory Exp. Thermal Defense Suite | x1 | -4/Factory Exp. Q-thruster | x1 | -4/Factory Exp. Q-thruster | x1 | -4/Factory Lgt. Quantum Reactor | x2 | -3/Research | Preloaded Exp. Energy Well | x1 | -3/Testing Exp. Phase Shifter | x1 | -3/Testing Exp. Weapon Cycler | x1 | -3/Testing Lgt. Quantum Reactor | x2 | -3/Testing Alien Tech Used ----------------- Core Reset Matrix Terrabomb Integrated Reactor Integrated Heat Negator Integrated Dissipator Integrated Singularity Reactor Core Cannon LRC Boosters LRC Insulator Sigix Quantum Sheargun Transdimensional Reconstructor Dimensional Node Initializer High-powered Transdimensional Reconstructor Matter Drive Achievements -------------- Revising The Future Challenges ------------ None RPGLIKE | -11 -10 -10 -10 -9 -8 -8 -8 -8 -7 -7 -6 -6 -5 -5 -4 -4 -4 -4 -4 -3 -3 -3 -2 -2 -2 -1 --------- Run | Scr Mat Min Exi Min Mat Gar Mat Gar Fac Gar Fac Gar Fac Gar Fac Ext Cet Arc Hub Res Tes Gar Res Qua Sec Acc Levels Raised 34 | . . . . 2 1 2 1 2 2 3 4 1 3 1 2 1 . . 1 . 2 . 1 1 2 2 XP Earned 54561 | 3000 110 900 350 1779 2378 3281 735 2636 3970 4835 5100 2140 4107 1737 2210 1243 918 118 721 1160 1696 666 1399 2160 1903 3309 XP Spent 325655 | . 2950 1000 16350 47825 . 5550 . . 31500 3200 21400 . 6030 14350 3450 17700 3100 . . 1850 6400 . . 135300 4400 3300 Upgrades 243 | . 5 2 15 62 . 5 . . 27 1 17 . 14 14 7 19 1 . . 3 3 . . 35 7 6 Power Slot 1 | . . . . . . . . . . . 1 . . . . . . . . . . . . . . . Propulsion Slot 5 | . 2 . 3 . . . . . . . . . . . . . . . . . . . . . . . Utility Slot 13 | . . 1 4 . . . . . 4 1 1 . 1 1 . . . . . . . . . . . . Weapon Slot 3 | . . 1 2 . . . . . . . . . . . . . . . . . . . . . . . Core Integrity 8 | . . . . . . . . . . . . . 8 . . . . . . . . . . . . . Heat Dissipation 15 | . . . . 5 . . . . . . 5 . . . 5 . . . . . . . . . . . Energy Generation 19 | . 3 . . 2 . . . . . . 4 . . 2 . 3 . . . . . . . 5 . . Energy Storage 18 | . . . . 8 . . . . . . 2 . . . . 8 . . . . . . . . . . Matter Storage 14 | . . . . . . . . . 4 . 2 . . . . 8 . . . . . . . . . . Mass Support 12 | . . . . . . 3 . . 2 . . . . 1 . . 1 . . . 1 . . 4 . . Inventory Capacity 23 | . . . 6 . . 2 . . 2 . . . . . . . . . . . . . . 13 . . Sight Range 8 | . . . . 4 . . . . . . . . . . 2 . . . . . 2 . . . . . Sensor Range 15 | . . . . 10 . . . . . . . . 5 . . . . . . . . . . . . . Terrain Scan Density 16 | . . . . . . . . . . . . . . 10 . . . . . . . . . . . 6 Ranged Accuracy 15 | . . . . 13 . . . . . . . . . . . . . . . . . . . 2 . . Hack Attack % 20 | . . . . 10 . . . . 2 . . . . . . . . . . . . . . 8 . . Hack Defense % 15 | . . . . 10 . . . . 1 . 2 . . . . . . . . . . . . 2 . . KI Resistance % 4 | . . . . . . . . . 2 . . . . . . . . . . 2 . . . . . . TH Resistance % 4 | . . . . . . . . . 2 . . . . . . . . . . 1 . . . 1 . . EX Resistance % 4 | . . . . . . . . . 4 . . . . . . . . . . . . . . . . . KI Damage % 4 | . . . . . . . . . 4 . . . . . . . . . . . . . . . . . TH Damage % 4 | . . . . . . . . . . . . . . . . . . . . . . . . . 4 . EX Damage % 3 | . . . . . . . . . . . . . . . . . . . . . . . . . 3 . Protomatter Created 2135 | . . 18 . 41 36 105 . 292 40 359 40 352 160 138 127 66 89 . . . 92 46 . 33 101 . Integrity Restored 3566 | . . 54 . 39 . 285 . 529 . 481 . 575 221 170 91 383 . . . . 282 456 . . . . Core 3419 | . . 54 . 39 . 285 . 459 . 445 . 575 221 129 91 383 . . . . 282 456 . . . . Parts 147 | . . . . . . . . 70 . 36 . . . 41 . . . . . . . . . . . . Protomatter Decayed 2377 | . . . . 59 36 10 . 16 40 176 59 171 313 203 180 359 218 . 178 . 63 148 . 92 56 . Game ------ Seed LightpackBiocellImmobilizer Manual? 0 Play Time 06:21:33 Cumulative 17.6 hours Start 2021.10.26 @ 20:09:20 End 2021.10.27 @ 06:47:57 Sessions 3 Manual Loads 0 Difficulty Rogue Special Mode Winter2019/RPGLIKE Game No. 10 Rogue 10 Adventurer 0 Explorer 0 Win Type 3 Total 1 Types 0/0/0/1/0/0/0/0/0 Lore% 25 Gallery% 19 Achievement% 62 Wizard Run 0 Options --------- ASCII 0 Keyboard 0 Movement Arrows Keybinds 0 Fullscreen 2 Font 18/X11 Map View 76x50 Tactical HUD 1 Map Filters NONE Filters NONE Steam 1 RUN: 2b3adf92-df15-47b0-ab8e-9c110df6c4e8